bitfinex-derivatives/quotes_ETHF0:USTF0_20240917
["timestamp","ask_amount","ask_price","bid_price","bid_amount"]
[1726577598477,0.43127,2318.9,2318.8,2.7]
[1726577598669,1.15797,2318.9,2318.8,3.13127]
[1726577598873,0.7267,2318.9,2318.8,3.13127]
[1726577599577,1.15796,2318.9,2318.8,3.13127]
[1726577599979,0.7267,2318.9,2318.8,3.13127]
[1726577600285,0.7267,2318.9,2318.8,2.7]
[1726577600286,1.15796,2318.9,2318.8,2.7]
[1726577600579,0.7267,2318.9,2318.8,3.13127]
[1726577601885,0.43123,2319.1,2319.0,0.43122]
[1726577602678,0.7112,2319.2,2318.9,2.7]
[1726577602679,1.14241,2319.2,2319.1,0.43122]
[1726577602977,0.7112,2319.2,2319.1,2.7]
[1726577603181,1.14242,2319.2,2319.1,2.7]
[1726577603677,0.43122,2319.1,2319.0,2.7]
[1726577603977,0.43122,2319.1,2319.0,3.13124]
[1726577604577,0.43122,2319.1,2319.0,2.7]
[1726577604975,1.14241,2319.2,2319.0,3.13122]
[1726577605173,1.14241,2319.2,2319.1,2.7]
[1726577605679,1.14241,2319.2,2319.1,3.13122]
[1726577606471,1.14241,2319.2,2319.1,2.7]
[1726577606677,1.14241,2319.2,2319.1,3.13122]
[1726577607273,0.7112,2319.2,2319.1,3.13122]
[1726577608281,1.1424,2319.2,2319.1,3.13122]
[1726577608474,1.1424,2319.2,2319.1,2.7]
[1726577608673,1.1424,2319.2,2319.1,3.13122]
[1726577610279,0.7112,2319.2,2319.1,3.13122]
[1726577611385,1.1424,2319.2,2319.1,3.13122]
[1726577612088,0.7112,2319.2,2319.1,3.13122]
[1726577613386,1.1424,2319.2,2319.1,3.13122]
[1726577613585,0.7112,2319.2,2319.1,3.13122]
[1726577614077,1.1424,2319.2,2319.1,3.13122]
[1726577615993,0.7112,2319.2,2319.1,3.13122]
[1726577616177,1.1424,2319.2,2319.1,3.13122]
[1726577616373,0.7112,2319.2,2319.1,3.13122]
[1726577616579,0.7112,2319.2,2319.1,4.20927]
[1726577616783,0.7112,2319.2,2319.1,3.13122]
[1726577616980,0.7112,2319.2,2319.1,4.20927]
[1726577617281,0.7112,2319.2,2319.1,3.13122]
[1726577618379,0.7112,2319.2,2319.1,4.20927]
[1726577618576,0.7112,2319.2,2319.1,3.13122]
[1726577619284,1.1424,2319.2,2319.1,3.13122]
[1726577619589,0.7112,2319.2,2319.1,3.13122]
[1726577621288,0.7112,2319.2,2319.1,4.20927]
[1726577621685,1.07786,2319.6,2319.5,0.43113]
[1726577621686,0.43114,2319.6,2319.5,0.43113]
[1726577621993,1.14884,2319.6,2319.5,1.67113]
[1726577622185,1.14884,2319.6,2319.5,1.67114]
[1726577623994,1.14884,2319.6,2319.5,3.12114]
[1726577624196,0.7177,2319.6,2319.5,3.12114]
[1726577624697,1.14883,2319.6,2319.5,3.12114]
[1726577626281,0.7177,2319.6,2319.5,3.12114]
[1726577628391,0.101,2320.4,2320.1,0.43102]
[1726577628593,2.1267,2320.3,2320.1,0.43102]
[1726577628791,2.1267,2320.3,2320.0,3.2078]
[1726577628997,2.1267,2320.3,2320.2,0.43101]
[1726577629189,2.1267,2320.3,2320.2,2.69]
[1726577629493,0.43101,2320.2,2320.1,2.69]
[1726577629699,4.3096,2320.2,2320.1,2.69]
[1726577629901,4.74061,2320.2,2320.1,2.69]
[1726577630096,4.3096,2320.2,2320.1,2.69]
[1726577630293,4.74061,2320.2,2320.1,2.69]
[1726577630601,4.3096,2320.2,2320.1,2.69]
[1726577631492,2.1267,2320.3,2320.1,2.69]
[1726577632496,2.1267,2320.3,2320.0,3.63883]
[1726577632497,2.1267,2320.3,2320.2,2.69]
[1726577632690,2.1267,2320.3,2320.2,3.12101]
[1726577633493,1.9767,2320.3,2320.2,3.12101]
[1726577635093,0.43091,2320.8,2320.5,0.43095]
[1726577635289,1.4141,2320.7,2320.5,0.43095]
[1726577635501,1.4141,2320.7,2320.6,2.69]
[1726577636794,1.4141,2320.7,2320.6,3.12094]
[1726577638602,1.4141,2320.7,2320.6,2.69]
[1726577638806,1.4141,2320.7,2320.6,3.12094]
[1726577640297,1.84502,2320.7,2320.6,2.69]
[1726577640699,0.43096,2320.6,2320.3,2.69]
[1726577641007,0.43099,2320.4,2320.1,2.69]
[1726577641203,1.9198,2320.3,2320.1,2.69]
[1726577641396,1.4888,2320.3,2320.2,3.12101]
[1726577641795,1.4888,2320.3,2320.2,15.15729848]
[1726577642097,1.4888,2320.3,2320.2,6.32881]
[1726577642500,1.4888,2320.3,2320.2,3.12101]
[1726577644104,1.4888,2320.3,2320.2,1.67101]
[1726577644308,1.13815,2320.6,2320.5,0.43096]
[1726577644309,0.7072,2320.6,2320.5,0.43096]
[1726577644502,1.13814,2320.6,2320.5,1.24]
[1726577644702,1.13814,2320.6,2320.4,1.67097]
[1726577644703,0.43096,2320.5,2320.4,1.67097]
[1726577644897,0.43096,2320.5,2320.4,1.24]
[1726577645099,0.7072,2320.6,2320.4,1.24]
[1726577645301,0.43096,2320.5,2320.3,0.43098]
[1726577645501,1.15476,2320.5,2320.4,0.43098]
[1726577645701,1.15476,2320.5,2320.4,1.67098]
[1726577645910,0.7238,2320.5,2320.4,1.67098]
[1726577648304,0.7238,2320.5,2320.4,7.05803]
[1726577648603,1.416,2320.6,2320.4,7.05803]
[1726577648604,0.7088,2320.6,2320.5,0.43096]
[1726577648997,0.6979,2320.7,2320.6,1.5083]
[1726577649198,0.6979,2320.7,2320.6,2.7483]
[1726577649398,0.6979,2320.7,2320.6,1.67094]
[1726577651313,1.12882,2320.7,2320.6,0.43094]
[1726577651611,1.12882,2320.7,2320.6,1.67094]
[1726577652204,1.12882,2320.7,2320.6,1.24]
[1726577652205,2.20613,2320.7,2320.6,1.24]
[1726577653201,1.50836,2320.5,2320.4,1.24]
[1726577654410,1.50843,2320.4,2320.3,1.24]
[1726577654611,2.23063,2320.4,2320.3,1.24]
[1726577655710,5.43843,2320.4,2320.3,1.24]
[1726577655905,0.43101,2320.2,2320.1,2.69]
[1726577656303,0.43101,2320.2,2320.1,3.12103]
[1726577656712,1.4003,2320.3,2320.1,2.69]
[1726577656920,1.83131,2320.3,2320.2,0.43101]
[1726577657215,1.4003,2320.3,2320.2,0.43101]
[1726577657717,1.8313,2320.3,2320.2,0.43101]
[1726577658105,1.4003,2320.3,2320.1,2.69]
[1726577658305,1.50855,2320.2,2320.1,2.69]
[1726577658506,0.43103,2320.1,2320.0,5.8978]
[1726577658714,1.07754,2320.2,2319.8,2.69]
[1726577658715,0.43107,2319.9,2319.8,2.69]
[1726577658909,0.43111,2319.7,2319.6,2.69]
[1726577659806,0.43111,2319.7,2319.3,4.28575]
[1726577659807,0.43111,2319.7,2319.4,2.69]
[1726577660006,0.43116,2319.4,2319.3,3.2078]
[1726577660813,1.16346,2319.4,2319.3,3.2078]
[1726577661917,1.07796,2319.3,2319.2,2.69]
[1726577662119,1.07796,2319.3,2318.8,1.22002034]
[1726577662120,0.43121,2319.2,2319.0,2.69]
[1726577662315,0.43119,2319.3,2319.1,0.43121]
[1726577662514,0.43119,2319.3,2319.2,2.69]
[1726577663212,0.43119,2319.3,2318.9,0.43124]
[1726577663213,0.43121,2319.2,2318.9,3.12125]
[1726577663419,0.43122,2319.1,2318.9,3.12125]
[1726577663609,0.43121,2319.2,2319.0,2.69]
[1726577663810,0.43121,2319.2,2319.0,3.12124]
[1726577664618,0.43121,2319.2,2319.0,3.12123]
[1726577664921,0.7323,2319.4,2319.0,3.12123]
[1726577664922,0.43122,2319.1,2319.0,2.69]
[1726577665124,3.63902,2319.1,2319.0,2.69]
[1726577666224,3.2078,2319.1,2318.9,2.69]
[1726577666524,3.2078,2319.1,2318.7,2.69]
[1726577666525,0.43127,2318.8,2318.7,2.69]
[1726577666721,0.43127,2318.8,2318.3,0.53236]
[1726577666722,0.43133,2318.5,2318.3,0.53236]
[1726577667024,0.43131,2318.6,2318.5,2.69]
[1726577667228,4.33621,2318.6,2318.5,2.69]
[1726577667724,4.33621,2318.6,2318.3,0.43136]
[1726577667725,4.98319,2318.6,2318.3,3.12137]
[1726577667918,3.9049,2318.6,2318.5,2.69]
[1726577668127,1.12843,2318.6,2318.5,3.12133]
[1726577668318,1.12843,2318.6,2318.5,2.69]
[1726577668525,4.33623,2318.6,2318.5,2.69]
[1726577669420,1.12843,2318.6,2318.5,2.69]
[1726577670325,4.33623,2318.6,2318.5,2.69]
[1726577670526,1.12843,2318.6,2318.5,2.69]
[1726577671320,4.33623,2318.6,2318.5,2.69]
[1726577673724,1.12843,2318.6,2318.5,3.12133]
[1726577674025,1.12843,2318.6,2318.5,2.69]
[1726577674221,4.33623,2318.6,2318.5,2.69]
[1726577674528,1.12843,2318.6,2318.5,2.69]
[1726577674730,1.12843,2318.6,2318.5,3.12133]
[1726577674731,4.33623,2318.6,2318.5,3.12133]
[1726577675220,1.12843,2318.6,2318.5,3.12133]
[1726577676130,1.12843,2318.6,2318.5,2.69]
[1726577676324,4.33623,2318.6,2318.5,2.69]
[1726577676625,1.12843,2318.6,2318.5,3.12133]
[1726577677132,5.41452,2318.6,2318.5,2.69]
[1726577677328,3.9049,2318.6,2318.5,3.12133]
[1726577677534,0.6971,2318.6,2318.5,3.12133]
[1726577677830,1.1255,2318.7,2318.6,0.43131]
[1726577677831,0.6942,2318.7,2318.6,0.43131]
[1726577678017,0.6942,2318.7,2318.6,3.12131]
[1726577678426,9.3124,2319.0,2318.8,0.43127]
[1726577678629,0.43127,2318.9,2318.8,0.43127]
[1726577678820,0.43127,2318.9,2318.8,3.12127]
[1726577679522,5.38485,2319.0,2318.9,0.43126]
[1726577679730,0.43124,2319.0,2318.8,3.5324]
[1726577680032,0.43124,2319.0,2318.9,0.43124]
[1726577680230,1.7432,2319.2,2318.8,3.5324]
[1726577680431,1.7432,2319.2,2319.0,3.12122]
[1726577680432,0.43122,2319.1,2319.0,3.12122]
[1726577681629,0.43122,2319.1,2319.0,2.69]
[1726577682232,1.7432,2319.2,2319.1,0.43122]
[1726577682434,0.8982,2319.2,2319.1,0.43122]
[1726577682630,3.63898,2319.3,2319.2,0.4312]
[1726577683330,1.50921,2319.2,2319.1,0.9216]
[1726577683530,1.50921,2319.2,2319.0,0.43123]
[1726577683531,0.43124,2319.0,2318.9,2.69]
[1726577683722,0.43126,2318.9,2318.8,0.43127]
[1726577684140,0.43126,2318.9,2318.6,0.9216]
[1726577684141,1.07815,2318.9,2318.6,0.9216]
[1726577684325,0.43127,2318.8,2318.6,0.9216]
[1726577684525,0.43127,2318.8,2318.7,0.43129]
[1726577684731,2.22176,2318.9,2318.7,0.43129]
[1726577684931,2.22176,2318.9,2318.7,3.12129]
[1726577685229,1.7905,2318.9,2318.8,3.12127]
[1726577685422,0.8921,2318.9,2318.8,3.12127]
[1726577685629,0.43123,2319.1,2318.9,0.43126]
[1726577685827,0.43123,2319.1,2318.8,2.69]
[1726577686132,2.25091,2319.2,2319.0,0.43124]
[1726577686326,2.25091,2319.2,2319.1,0.43122]
[1726577686327,1.8197,2319.2,2319.1,0.43122]
[1726577686532,1.8197,2319.2,2319.0,3.12123]
[1726577686719,1.8197,2319.2,2318.6,0.9216]
[1726577686720,1.8197,2319.2,2318.9,0.43124]
[1726577686925,0.43123,2319.1,2318.9,0.43124]
[1726577687129,0.43122,2319.1,2318.9,0.43125]
[1726577687330,2.89772,2319.2,2318.8,2.69]
[1726577687331,0.43124,2319.0,2318.8,2.69]
[1726577687637,0.43124,2319.0,2318.9,0.43126]
[1726577687831,0.43123,2319.1,2318.9,0.43126]
[1726577688032,0.43123,2319.1,2318.9,0.43124]
[1726577688233,0.43123,2319.1,2318.8,2.69]
[1726577688425,1.8197,2319.2,2319.0,0.43124]
[1726577688833,0.43122,2319.1,2318.9,0.43125]
[1726577689127,1.8197,2319.2,2319.1,0.43122]
[1726577689528,2.2509,2319.2,2319.0,3.12122]
[1726577689937,2.2509,2319.2,2319.1,0.43122]
[1726577690127,2.2509,2319.2,2319.0,3.12122]
[1726577690538,2.2509,2319.2,2319.1,0.43122]
[1726577690929,1.8197,2319.2,2319.1,0.43122]
[1726577691227,2.2509,2319.2,2319.1,0.43122]
[1726577691423,1.8197,2319.2,2319.1,0.43122]
[1726577691836,2.2509,2319.2,2319.1,0.9308]
[1726577692534,1.8197,2319.2,2319.1,1.36202]
[1726577692739,2.2509,2319.2,2319.1,1.36202]
[1726577693438,1.8197,2319.2,2319.1,1.36202]
[1726577693636,3.63899,2319.3,2319.2,0.4312]
[1726577693637,3.2078,2319.3,2319.2,0.4312]
[1726577693831,3.2078,2319.3,2319.2,3.1212]
[1726577693832,3.63898,2319.3,2319.2,3.1212]
[1726577694028,0.8845,2319.4,2319.2,3.12118]
[1726577694234,1.31568,2319.4,2319.3,0.43118]
[1726577694535,0.43118,2319.3,2319.2,2.69]
[1726577694743,0.43118,2319.3,2319.2,3.12119]
[1726577694932,0.43118,2319.3,2319.2,2.69]
[1726577695433,1.31567,2319.4,2319.3,0.43118]
[1726577695627,0.43115,2319.5,2319.2,2.69]
[1726577695831,0.43117,2319.4,2319.3,0.43117]
[1726577696028,5.0114,2319.6,2319.3,0.43117]
[1726577696029,0.43116,2319.5,2319.3,0.43117]
[1726577696232,0.43116,2319.4,2319.3,0.43117]
[1726577696436,0.43114,2319.5,2319.3,0.43117]
[1726577696836,0.43114,2319.5,2319.4,0.43116]
[1726577697343,0.43114,2319.5,2319.3,0.43117]
[1726577697531,0.43114,2319.5,2319.4,0.43116]
[1726577698744,5.0114,2319.6,2319.5,0.43114]
[1726577699348,5.44253,2319.6,2319.5,0.8826]
[1726577699649,0.43114,2319.5,2319.4,3.12115]
[1726577699843,5.0114,2319.6,2319.5,0.43114]
[1726577699844,5.44254,2319.6,2319.5,0.43114]
[1726577700448,5.0114,2319.6,2319.4,2.69]
[1726577700646,5.0114,2319.6,2319.5,0.43114]
[1726577700845,5.44254,2319.6,2319.5,0.43114]
[1726577701145,5.0114,2319.6,2319.5,0.43114]
[1726577701746,0.43109,2319.8,2319.7,0.43111]
[1726577701936,2.22999,2319.8,2319.7,3.12111]
[1726577703150,0.43108,2319.9,2319.8,0.43107]
[1726577703443,0.43108,2319.9,2319.7,3.80902034]
[1726577703444,0.43109,2319.8,2319.7,1.11902034]
[1726577703751,0.43111,2319.7,2319.6,0.43112]
[1726577703949,0.43111,2319.7,2319.5,1.11902034]
[1726577703950,0.43113,2319.6,2319.5,1.55015034]
[1726577704136,0.43113,2319.6,2319.5,3.31865471]
[1726577704444,0.43113,2319.6,2319.5,2.88752471]
[1726577704646,1.50901,2319.5,2319.4,1.12061304]
[1726577704843,0.43116,2319.4,2319.3,1.12061304]
[1726577705239,1.50907,2319.4,2319.3,1.12061304]
[1726577705439,1.50907,2319.4,2319.2,1.12061304]
[1726577705440,0.43118,2319.3,2319.2,1.12061304]
[1726577705638,0.4312,2319.2,2319.1,1.12061304]
[1726577705844,6.74571,2319.2,2319.1,1.12061304]
[1726577706051,6.74571,2319.2,2318.9,1.12061304]
[1726577706052,6.31451,2319.2,2318.9,1.12061304]
[1726577706235,1.32903,2319.1,2318.9,1.12061304]
[1726577706435,1.32903,2319.1,2318.9,1.55186304]
[1726577706637,1.32903,2319.1,2318.9,1.12061304]
[1726577706841,1.32903,2319.1,2318.9,1.55186304]
[1726577707648,1.32903,2319.1,2319.0,1.12061304]
[1726577707839,1.32903,2319.1,2318.9,1.55186304]
[1726577708346,1.32903,2319.1,2319.0,1.12061304]
[1726577708942,0.8978,2319.1,2319.0,1.55185304]
[1726577709139,0.8978,2319.1,2319.0,6.56879095]
[1726577709649,1.35571,2319.2,2319.0,6.56879095]
[1726577709845,1.35571,2319.2,2319.0,3.81178731]
[1726577710034,0.43122,2319.1,2319.0,1.12178731]
[1726577710238,0.43124,2319.0,2318.9,1.12178731]
[1726577710651,0.43123,2319.1,2318.9,0.43125]
[1726577710844,0.43122,2319.1,2318.9,0.43125]
[1726577711345,0.9245,2319.2,2319.0,0.43122]
[1726577711346,1.35571,2319.2,2319.0,0.43122]
[1726577711542,1.3557,2319.2,2319.0,0.43122]
[1726577712647,0.9245,2319.2,2319.1,0.43122]
[1726577713238,0.864,2319.3,2319.2,0.4312]
[1726577714353,1.29518,2319.3,2319.2,0.4312]
[1726577714748,4.50298,2319.3,2319.1,0.43121]
[1726577714944,0.4312,2319.2,2319.1,0.43121]
[1726577715144,1.2952,2319.3,2319.1,1.55299731]
[1726577715347,1.29519,2319.3,2319.2,0.4312]
[1726577715649,0.864,2319.3,2319.2,0.4312]
[1726577716855,0.864,2319.3,2319.2,1.55298731]
[1726577717353,0.864,2319.3,2319.2,3.3218331]
[1726577717653,1.29518,2319.3,2319.2,1.12178731]
[1726577718152,0.4312,2319.2,2319.1,2.11002687]
[1726577718351,1.29519,2319.3,2319.2,0.4312]
[1726577718559,1.29519,2319.3,2319.2,1.5532763]
[1726577718745,1.29519,2319.3,2319.2,3.32226663]
[1726577718947,1.29519,2319.3,2319.2,1.5532763]
[1726577719546,1.29519,2319.3,2319.2,3.32241469]
[1726577719953,1.29519,2319.3,2319.2,3.87916526]
[1726577720154,1.29519,2319.3,2319.2,3.32240465]
[1726577720953,0.864,2319.3,2319.2,3.87916526]
[1726577721157,0.43117,2319.4,2319.3,0.43118]
[1726577721343,0.43118,2319.3,2319.2,2.11001687]
[1726577721548,0.43118,2319.3,2319.2,3.87965759]
[1726577723153,1.30077,2319.4,2319.3,0.43118]
[1726577723449,0.8696,2319.4,2319.3,3.87964759]
[1726577723645,1.34476,2319.5,2319.4,0.43116]
[1726577723646,0.9136,2319.5,2319.4,0.43116]
[1726577723848,1.7832,2319.5,2319.4,3.32415504]
[1726577724052,2.21434,2319.5,2319.4,3.88021636]
[1726577724258,0.8592,2319.6,2319.5,0.43114]
[1726577724450,0.43111,2319.7,2319.5,3.45435776]
[1726577724660,2.1929,2319.8,2319.6,4.24387243]
[1726577724953,1.7618,2319.8,2319.6,2.69]
[1726577725158,1.7618,2319.8,2319.7,1.55385243]
[1726577725350,2.1929,2319.8,2319.7,0.43111]
[1726577725549,2.1929,2319.8,2319.6,1.97224243]
[1726577725751,2.1929,2319.8,2319.6,2.40335243]
[1726577725951,2.1929,2319.8,2319.7,0.43111]
[1726577726151,1.7618,2319.8,2319.7,0.43111]
[1726577727053,0.8746,2319.9,2319.8,0.43109]
[1726577727256,0.43106,2320.0,2319.7,3.81274243]
[1726577727447,0.43106,2320.0,2319.9,2.69]
[1726577727760,3.05515,2320.1,2319.9,3.12106]
[1726577728052,1.7042,2320.1,2320.0,0.43105]
[1726577728254,3.2078,2320.2,2320.1,0.43103]
[1726577729960,3.2078,2320.2,2320.1,3.12103]
[1726577730254,2.6435,2320.4,2320.3,0.431]
[1726577731555,0.43101,2320.2,2320.0,2.45848243]
[1726577731857,0.43101,2320.3,2320.1,5.25802196]
[1726577732053,3.2078,2320.5,2320.4,0.43098]
[1726577732253,3.63877,2320.5,2320.3,3.12099]
[1726577733158,2.84973,2320.7,2320.3,2.69]
[1726577733457,3.63875,2320.6,2320.4,0.43097]
[1726577734266,0.9013,2320.5,2320.4,0.43097]
[1726577735858,0.9013,2320.5,2320.4,4.74057]
[1726577736060,2.20333,2320.7,2320.6,0.43094]
[1726577736560,0.43094,2320.6,2320.4,1.30946]
[1726577736762,0.43094,2320.6,2320.4,0.8785]
[1726577736957,0.43094,2320.6,2320.5,0.43096]
[1726577737160,2.20333,2320.7,2320.4,0.8785]
[1726577737365,2.20332,2320.7,2320.6,0.43094]
[1726577737567,1.7724,2320.7,2320.6,0.43094]
[1726577737758,2.20332,2320.7,2320.6,0.43094]
[1726577738061,0.9136,2320.7,2320.6,0.43094]
[1726577738254,1.32454,2321.2,2320.8,1.07726]
[1726577738560,3.06913,2321.2,2321.1,0.43085]
[1726577739163,0.43085,2321.1,2321.0,3.12085]
[1726577739457,6.92318,2321.2,2320.6,2.69]
[1726577739668,0.43091,2320.8,2320.7,0.43092]
[1726577739854,0.43091,2320.8,2320.6,0.43092]
[1726577740055,0.8567,2320.7,2320.6,0.43092]
[1726577740660,0.8567,2320.7,2320.5,2.69]
[1726577740963,1.6986,2320.7,2320.5,0.43095]
[1726577741160,0.43094,2320.6,2320.5,0.43095]
[1726577741363,2.12954,2320.7,2320.5,0.43095]
[1726577741757,2.12954,2320.7,2320.6,0.43094]
[1726577742470,1.6986,2320.7,2320.6,0.43094]
[1726577742774,1.6986,2320.7,2320.6,3.12094]
[1726577744070,0.8567,2320.7,2320.6,3.12094]
[1726577744268,0.9003,2320.8,2320.7,0.43092]
[1726577744471,3.2078,2320.9,2320.8,0.4309]
[1726577744665,0.43088,2320.9,2320.8,0.4309]
[1726577745066,2.21148,2321.0,2320.9,0.43088]
[1726577747071,2.21148,2321.0,2320.8,3.12089]
[1726577747669,0.43088,2320.9,2320.8,3.12089]
[1726577750879,1.7806,2321.0,2320.9,0.43088]
[1726577751183,0.8575,2321.1,2321.0,0.43087]
[1726577751482,0.8575,2321.1,2321.0,3.12087]
[1726577752472,2.25393,2321.2,2321.0,3.12087]
[1726577752673,2.25393,2321.2,2321.0,3.12085]
[1726577754075,5.46173,2321.2,2321.0,3.12085]
[1726577754983,1.8231,2321.2,2321.0,2.69]
[1726577755282,2.25393,2321.2,2321.0,3.12086]
[1726577755585,2.25394,2321.2,2321.0,3.12086]
[1726577757279,2.25394,2321.2,2321.1,0.43085]
[1726577757280,1.8231,2321.2,2321.1,0.43085]
[1726577757879,2.25394,2321.2,2321.0,3.12085]
[1726577758182,2.25394,2321.2,2321.0,2.69]
[1726577758183,0.43085,2321.1,2321.0,2.69]
[1726577758369,0.43085,2321.1,2320.9,3.12087]
[1726577758574,0.43089,2320.9,2320.5,3.6362]
[1726577758775,1.7381,2320.8,2320.7,3.12092]
[1726577760874,0.8414,2321.0,2320.9,0.43088]
[1726577761076,0.8414,2321.0,2320.9,3.12088]
[1726577761577,1.8172,2321.1,2321.0,0.43087]
[1726577761979,1.31444,2321.2,2321.1,0.43085]
[1726577762780,1.31444,2321.2,2321.1,3.12085]
[1726577763577,0.8836,2321.2,2321.0,3.12086]
[1726577763779,4.0914,2321.2,2321.0,3.12086]
[1726577764086,0.43086,2321.1,2321.0,0.43087]
[1726577764378,0.43088,2320.9,2320.8,3.1209]
[1726577764587,0.43088,2321.0,2320.8,0.4309]
[1726577764778,0.8748,2320.9,2320.8,0.4309]
[1726577764984,0.8748,2320.9,2320.8,3.1209]
[1726577764985,1.7869,2320.9,2320.8,3.1209]
[1726577765689,0.4309,2320.8,2320.7,0.43091]
[1726577765878,0.9258,2320.8,2320.7,3.12091]
[1726577769387,3.2078,2321.2,2320.7,8.0761]
[1726577769682,3.2078,2321.2,2321.1,3.12085]
[1726577769683,2.16363,2321.2,2321.1,3.12085]
[1726577769888,2.16363,2321.2,2321.1,2.69]
[1726577770587,0.43088,2321.0,2320.9,2.69]
[1726577771085,0.43088,2321.0,2320.9,3.12088]
[1726577771280,0.43088,2321.0,2320.9,0.43088]
[1726577771486,1.93463,2321.1,2320.7,2.69]
[1726577771686,0.84,2320.9,2320.7,3.12091]
[1726577771885,0.8477,2320.8,2320.7,3.12092]
[1726577772291,1.2786,2320.8,2320.7,3.12092]
[1726577772687,0.8477,2320.8,2320.7,3.12092]
[1726577772994,0.84,2320.9,2320.7,2.69]
[1726577773197,0.84,2320.9,2320.8,0.4309]
[1726577774388,2.13286,2321.1,2321.0,0.43087]
[1726577774589,3.02606,2321.1,2321.0,3.12087]
[1726577775297,3.02606,2321.1,2321.0,2.69]
[1726577775599,3.02606,2321.1,2321.0,3.12087]
[1726577775995,3.02606,2321.1,2321.0,2.69]
[1726577776400,3.02606,2321.1,2321.0,3.12087]
[1726577776692,0.43088,2321.0,2320.8,4.24363243]
[1726577776893,3.02606,2321.1,2320.9,0.43088]
[1726577777087,3.02606,2321.1,2320.9,3.12088]
[1726577777294,0.43087,2321.0,2320.9,3.12088]
[1726577779495,3.02606,2321.1,2320.9,3.12088]
[1726577780493,3.02606,2321.1,2320.8,1.12274243]
[1726577780494,3.67233,2321.1,2320.8,1.12274243]
[1726577780688,2.5952,2321.1,2320.8,1.12274243]
[1726577780889,0.43087,2321.0,2320.8,1.55364243]
[1726577781196,0.43087,2321.0,2320.9,0.43088]
[1726577781399,0.43088,2320.9,2320.8,1.55364243]
[1726577781596,0.43088,2321.0,2320.8,3.1209]
[1726577781901,0.43088,2321.0,2320.8,4.24364243]
[1726577783011,2.5952,2321.1,2320.9,1.55361243]
[1726577783299,3.02605,2321.1,2321.0,0.43087]
[1726577784195,2.5952,2321.1,2321.0,3.12087]
[1726577784404,1.7377,2321.1,2321.0,3.12087]
[1726577784606,1.7377,2321.1,2321.0,4.24361243]
[1726577785305,1.7377,2321.1,2321.0,7.12022927]
[1726577785503,1.7377,2321.1,2321.0,4.87637191]
[1726577786407,0.9284,2321.3,2321.0,4.44550191]
[1726577786702,2.1655,2321.4,2321.2,4.80189937]
[1726577786999,2.1655,2321.4,2321.3,1.12047248]
[1726577787000,1.7347,2321.4,2321.3,1.12047248]
[1726577787207,1.7347,2321.4,2321.3,1.55128248]
[1726577787405,2.16549,2321.4,2321.3,2.87569132]
[1726577787706,1.7347,2321.4,2321.3,2.87569132]
[1726577787904,1.7347,2321.4,2321.3,3.30650132]
[1726577788405,1.7347,2321.4,2321.3,2.87576284]
[1726577788703,1.7347,2321.4,2321.3,3.30657284]
[1726577788900,1.7347,2321.4,2321.3,2.18610036]
[1726577789407,1.7347,2321.4,2321.3,4.42995772]
[1726577789701,1.7347,2321.4,2321.3,7.93879837]
[1726577790101,4.1347,2321.5,2321.4,0.43079]
[1726577790405,4.1347,2321.5,2321.4,6.55613531]
[1726577790598,3.2078,2321.5,2321.4,6.55613531]
[1726577790993,3.63857,2321.5,2321.4,3.43534531]
[1726577791199,3.2078,2321.5,2321.4,1.55077554]
[1726577791399,3.2078,2321.5,2321.4,3.30232831]
[1726577791702,3.2078,2321.5,2321.4,3.30211438]
[1726577791897,0.43075,2321.7,2321.5,0.43076]
[1726577792103,2.22225,2321.7,2321.6,3.80952551]
[1726577792303,2.22225,2321.7,2321.6,2.69]
[1726577794308,4.9993,2321.7,2321.6,2.69]
[1726577794507,5.43004,2321.7,2321.6,3.12075]
[1726577795307,5.43004,2321.7,2321.6,2.69]
[1726577795508,4.9993,2321.7,2321.6,3.12075]
[1726577796615,5.43004,2321.7,2321.6,3.12075]
[1726577796807,4.9993,2321.7,2321.6,3.12075]
[1726577797906,5.43004,2321.7,2321.6,2.69]
[1726577798212,5.43004,2321.7,2321.6,3.12075]
[1726577799916,4.1021,2321.7,2321.6,3.12075]
[1726577800120,3.2078,2321.7,2321.6,4.19764]
[1726577800410,5.38019,2322.0,2321.9,0.4307]
[1726577800614,5.38019,2322.0,2321.9,3.1207]
[1726577800808,0.43073,2321.8,2321.7,2.69]
[1726577801005,0.43073,2321.8,2321.5,1.2369982]
[1726577801006,0.43075,2321.6,2321.5,3.99306]
[1726577801206,2.25925,2321.7,2321.6,0.43075]
[1726577801812,1.8285,2321.7,2321.6,0.43075]
[1726577802004,2.25924,2321.7,2321.6,0.43075]
[1726577803210,2.25925,2321.7,2321.6,0.43075]
[1726577803907,0.43075,2321.6,2321.5,3.99306]
[1726577804108,0.8768,2321.6,2321.5,3.99306]
[1726577804511,1.8285,2321.7,2321.6,0.43075]
[1726577805413,0.43072,2321.8,2321.7,0.43074]
[1726577805613,0.43072,2321.8,2321.7,3.12074]
[1726577805813,0.43072,2321.8,2321.7,2.69]
[1726577806014,0.43072,2321.8,2321.7,3.12074]
[1726577807820,0.43072,2321.8,2321.7,2.69]
[1726577809328,0.43074,2321.7,2321.6,3.12075]
[1726577811624,0.43074,2321.8,2321.7,0.43073]
[1726577811920,0.43073,2321.8,2321.7,0.43073]